fUST/lending_fUST_20250309
["ID","MTS","AMOUNT","RATE_DAILY","PERIOD"]
[355725861,1741507653429,-500.0,0.00037741,2]
[355725862,1741507653458,-500.0,0.00037741,2]
[355725863,1741507653486,-500.0,0.00037741,2]
[355725864,1741507653515,-500.0,0.00037741,2]
[355725865,1741507653543,-594.05631117,0.00037741,2]
[355725866,1741507653571,-500.0,0.00037741,2]
[355725867,1741507653597,-500.0,0.00037741,2]
[355725868,1741507653623,-500.0,0.00037741,2]
[355725869,1741507653649,-500.0,0.00037741,2]
[355725870,1741507653676,-500.0,0.00037741,2]
[355725871,1741507653706,-500.0,0.00037741,2]
[355725872,1741507653734,-500.0,0.00037741,2]
[355725873,1741507653762,-171.81497251,0.00037741,2]
[355725874,1741507718130,500.0,0.0003,2]
[355725875,1741507750082,-400.0,0.00036999,2]
[355725876,1741507750104,-9615.65113241,0.00037,4]
[355725877,1741507750130,-328.18502749,0.00037741,2]
[355725878,1741507750152,-193.0,0.00037742,2]
[355725879,1741507750176,-4896.3790473,0.00037742,2]
[355725880,1741507752154,-1828.19127894,0.00037742,2]
[355725881,1741507755221,-1635.16307181,0.00037742,2]
[355725882,1741507759143,-8895.02619855,0.00037742,2]
[355725883,1741507759166,-500.0,0.00037774,2]
[355725884,1741507759189,-501.66513458,0.000378,5]
[355725885,1741507759213,-506.79767543,0.000378,5]
[355725886,1741507759237,-503.67625015,0.000378,5]
[355725887,1741507759261,-160.5907278,0.000378,5]
[355725888,1741507759284,-500.0,0.000378,5]
[355725889,1741507759311,-500.0,0.000378,5]
[355725890,1741507759333,-500.0,0.000378,5]
[355725891,1741507759361,-729.28634683,0.000379,8]
[355725892,1741507759384,-157.549,0.00038356,2]
[355725893,1741507759407,-2891.94538201,0.00038773,64]
[355725895,1741507768110,-256.24855819,0.00038773,64]
[355725896,1741507768132,-157.549,0.00039178,2]
[355725897,1741507808335,600.0,0.0003772,2]
[355725898,1741507808966,891.8889873,0.00037775,2]
[355726031,1741507838556,-198.305,0.00039885,14]
[355726033,1741507838566,-157.549,0.0004,2]
[355726034,1741507838576,-254.560026,0.00040252,2]
[355726035,1741507838586,-977.6233773,0.00040252,2]
[355726036,1741507838596,-157.549,0.00040822,2]
[355726037,1741507838606,-313.68321764,0.000409,2]
[355726038,1741507838615,-164.61144221,0.00041544,120]
[355726039,1741507838625,-157.549,0.00041644,2]
[355726040,1741507838635,-550.0,0.00042219,5]
[355726041,1741507838645,-500.0,0.0004222,2]
[355726042,1741507838655,-288.22847902,0.0004222,2]
[355726043,1741507838665,-780.34145783,0.00042221,2]
[355726044,1741507838678,-14775.33253914,0.00042221,2]
[355726045,1741507838687,-157.549,0.00042466,2]
[355726046,1741507838698,-502.28796984,0.00043279,10]
[355726047,1741507838709,-157.549,0.00043288,2]
[355726048,1741507838719,-157.549,0.0004411,2]
[355726049,1741507838730,-316.0,0.0004493,5]
[355726050,1741507838740,-157.549,0.00044932,2]
[355726051,1741507838750,-11457.39890731,0.00045556,3]
[355726052,1741507838761,-8815.56587859,0.00045556,3]
[355726053,1741507838771,-416.66666667,0.00045556,3]
[355726054,1741507838781,-444.88463093,0.000456,10]
[355726055,1741507838791,-519.34971061,0.000456,10]
[355726056,1741507838801,-157.549,0.00045753,2]
[355726057,1741507838811,-813.72104228,0.00046495,2]
[355726058,1741507838822,-157.549,0.00046575,2]
[355726059,1741507838832,-2537.89127241,0.00046575,10]
[355726060,1741507838843,-813.72104228,0.0004662,2]
[355726061,1741507838853,-157.549,0.00047397,2]
[355726062,1741507838864,-1259921.6037703,0.000476,14]
[355726063,1741507838876,-2286.29673295,0.000476,14]
[355726064,1741507838888,-4245.72173351,0.000476,14]
[355726100,1741507840696,-2088.65368527,0.000476,14]
[355726112,1741507843538,-3999.9999975,0.000476,14]
[355726113,1741507843593,-5291.56104704,0.000476,14]
[355726114,1741507843647,-34590.15259876,0.000476,14]
[355726139,1741507846665,-1655.12104901,0.000476,14]
[355726140,1741507846746,-1825.63499155,0.000476,14]
[355726141,1741507846781,-93.36963733,0.000476,14]
[355726142,1741507846792,-265.209058,0.000476,14]
[355726143,1741507847034,-1573.22845741,0.000476,14]
[355726144,1741507865153,134.38765059,0.00036934,2]
[355726145,1741507865174,1027.32679331,0.00036934,2]
[355726147,1741507941521,500.0,0.00033,2]
[355726150,1741508277392,280.27,0.0003,2]
[355726151,1741508288244,300.0,0.0003,2]
[355726152,1741508355933,362.42,0.0003,2]
[355726153,1741508416083,-164.503393,0.0003589,2]
[355726154,1741508429954,-183.742672,0.00039213,2]
[355726155,1741508433079,-77.69590004,0.00039213,2]
[355726156,1741508433103,-106.04677196,0.00039313,2]
[355726157,1741508436233,-183.742672,0.00039313,2]
[355726158,1741508437921,-170.77621804,0.00039313,2]
[355726159,1741508437944,-12.96645396,0.000399,8]
[355726160,1741508439851,-183.742672,0.000399,8]
[355726161,1741508441404,-183.742672,0.000399,8]
[355726162,1741508442951,-183.742672,0.000399,8]
[355726163,1741508444952,-183.742672,0.000399,8]
[355726164,1741508445767,-6.57851448,0.000399,8]
[355726165,1741508446596,-183.742672,0.00041634,90]
[355726166,1741508454392,-16.257328,0.00041634,90]
[355726167,1741508454414,-133.742672,0.00041657,2]
[355726168,1741508456795,-150.0,0.00041657,2]
[355726169,1741508458631,-150.0,0.00041657,2]
[355726170,1741508460028,-150.0,0.00039113,2]
[355726171,1741508463813,-150.0,0.00039113,2]
[355726172,1741508464493,-144.54965494,0.00039113,2]
[355726173,1741508464517,-5.45034506,0.00041657,2]
[355726174,1741508465725,-150.0,0.00041657,2]
[355726175,1741508467353,-150.0,0.00041657,2]
[355726176,1741508469166,-150.0,0.00041657,2]
[355726177,1741508470826,-2678.76733784,0.00041657,2]
[355726178,1741508476217,-500.0,0.00042115,64]
[355726179,1741508479335,-2077.4160421,0.00042115,64]
[355726180,1741508486240,-150.0,0.00042068,2]
[355726181,1741508487711,-33.742672,0.00042068,2]
[355726182,1741508502425,-550.0,0.00042114,5]
[355726183,1741508502446,-500.0,0.00042322,42]
[355726184,1741508502468,-8375.8810872,0.00042673,2]
[355726185,1741508512003,-1050.0,0.00042673,2]
[355726186,1741508535739,-165.57839561,0.00043151,120]
[355726187,1741508535761,-179.26501344,0.00043251,28]
[355726188,1741508535783,-384.52172547,0.000439,9]
[355726189,1741508538794,-344.84340905,0.000439,9]
[355726308,1741508755124,-164.98018388,0.000439,9]
[355726311,1741508832100,-150.0,0.00040573,2]
[355726312,1741508832121,-1901.31834583,0.00043337,120]
[355726313,1741508849112,-806.94860387,0.00033,2]
[355726314,1741508849134,-216.4336703,0.00043092,2]
[355726315,1741508849158,-585.1610525,0.00043337,120]
[355726316,1741508850073,-1581.51342353,0.00043337,120]
[355726317,1741508851117,-332.95680832,0.00043337,120]
[355726318,1741508854080,-1951.93991971,0.00043337,120]
[355726319,1741508875115,4458.71690185,0.00016,2]
[355726320,1741508917474,353.55752682,0.000145,2]
[355726321,1741508922230,150.999999,0.0002,120]
[355726322,1741508923622,26103.27076995,0.0001,7]
[355726323,1741508923831,151.0,0.0003,60]
[355726324,1741508957103,-159.58505571,0.00037,5]
[355726327,1741508964309,2114.1959479,0.00039014,2]
[355726328,1741508974112,-252.0,0.00042,120]
[355726329,1741508974135,-506.78,0.00043,120]
[355726330,1741508992131,2577.4160421,0.00039039,64]
[355726398,1741509032960,-179.81932239,0.00043251,28]
[355726399,1741509032970,-3647.11045011,0.00043337,120]
[355726401,1741509032979,-550.0,0.00043899,5]
[355726403,1741509032989,-90.01981612,0.000439,9]
[355726405,1741509032998,-711.87869836,0.000439,9]
[355726407,1741509033007,-1508.04597784,0.00046,19]
[355726409,1741509033017,-154.57461384,0.00046,120]
[355726411,1741509033027,-18483.32898711,0.00046,8]
[355726413,1741509033039,-4137.44109565,0.00046,8]
[355726415,1741509033048,-4046.63890435,0.00046575,10]
[355726434,1741509038854,-178.7270363,0.00045999,2]
[355726435,1741509038866,-321.2729637,0.00045999,2]
[355726436,1741509038876,-500.0,0.00045999,2]
[355726437,1741509038886,-398.4770363,0.00045999,2]
[355726452,1741509040859,-101.5229637,0.00045999,2]
[355726453,1741509040872,-400.0770363,0.00045999,2]
[355726454,1741509040883,-99.9229637,0.00045999,2]
[355726455,1741509040893,-500.0,0.00045999,2]
[355726456,1741509040902,-500.0,0.00045999,2]
[355726457,1741509040911,-500.0,0.00045999,2]
[355726458,1741509040920,-605.15339035,0.00045999,2]
[355726459,1741509040929,-500.0,0.00045999,2]
[355726460,1741509040938,-500.0,0.00045999,2]
[355726461,1741509040947,-210.26427244,0.00045999,2]
[355726462,1741509041078,-216.8822133,0.00045999,2]
[355726465,1741509041990,-72.85351426,0.00045999,2]
[355726466,1741509041999,-250.22209,0.00046,120]
[355726467,1741509042009,-953.36109565,0.00046575,10]
[355726468,1741509042018,-2532.12328615,0.00047207,28]
[355726469,1741509042027,-1027.30413226,0.00047317,2]
[355726470,1741509042036,-812.52773911,0.00047318,2]
[355726471,1741509042046,-198.23325142,0.000475,2]
[355726472,1741509042055,-187.0,0.0004756,2]
[355726473,1741509042064,-535.22351615,0.00047561,2]
[355726474,1741509042073,-452.4,0.00047641,30]
[355726475,1741509042082,-222.47450987,0.00047648,120]
[355726488,1741509043800,-167.95536199,0.00047648,120]
[355726489,1741509043810,-418.14916016,0.00047648,31]
[355726490,1741509043819,-8719.22560927,0.00047649,4]
[355726491,1741509043854,-20203.67533073,0.00047649,4]
[355726492,1741509043865,-12973.81780198,0.00047651,4]
[355726493,1741509043876,-63994.67247112,0.00047651,4]
[355726494,1741509043886,-397.64947362,0.0004766,4]
[355726554,1741509046689,-3239.8,0.0004766,4]
[355726555,1741509046701,-7350.47076707,0.0004766,4]
[355726562,1741509057084,5000.0,0.000425,120]
[355726563,1741509069196,5000.0,0.0004,100]
[355726564,1741509103027,200.0,0.00040161,2]
[355726565,1741509104186,2075.033,0.000395,80]
[355726566,1741509136323,500.0,0.00033,2]
[355726567,1741509136694,500.0,0.00031,10]
[355726568,1741509148679,766.18426793,0.00033,2]
[355726569,1741509303110,1130.85,0.00016293,2]
[355726570,1741509303140,151.02666011,0.00019473,2]
[355726572,1741509700603,14040.64536211,0.00029578,2]
[355726574,1741509742521,200.0,0.0003,2]
[355726575,1741509780955,77.08178516,0.0003,7]
[355726576,1741509930115,-200.0,0.0003,7]
[355726577,1741509930137,-400.0,0.00030999,2]
[355726578,1741509930158,-500.0,0.00031,10]
[355726579,1741509930180,-500.0,0.00031,10]
[355726580,1741509930200,-500.0,0.00031,10]
[355726581,1741509930233,-500.0,0.00031,10]
[355726582,1741509930254,-500.0,0.00031,10]
[355726583,1741509930278,-396.03669742,0.00031,10]
[355726584,1741509958086,-103.96330258,0.00031,10]
[355726585,1741509958109,-929.70620657,0.00031,10]
[355726586,1741509958131,-500.0,0.00031,10]
[355726587,1741509958154,-500.0,0.00031,10]
[355726588,1741509958178,-500.0,0.00031,10]
[355726589,1741509958200,-500.0,0.00031,10]
[355726590,1741509958222,-500.0,0.00031,10]
[355726591,1741509958244,-500.0,0.00031,10]
[355726592,1741509958268,-61.27750924,0.00031,10]
[355726593,1741509991099,-438.72249076,0.00031,10]
[355726594,1741509991122,-596.23865431,0.00031,10]
[355726595,1741509991146,-189.7080112,0.00031,10]
[355726596,1741510034207,-2378.6399345,0.00030724,2]
[355726597,1741510034229,-772.24268406,0.000309,2]
[355726598,1741510034250,-520.7263581,0.00031,10]
[355726599,1741510034269,-2414.8819294,0.000317,2]
[355726600,1741510034290,-400.0,0.00031789,2]
[355726601,1741510034316,-500.0,0.0003179,2]
[355726602,1741510034339,-500.0,0.0003179,2]
[355726603,1741510034362,-500.0,0.0003179,2]
[355726604,1741510034385,-500.0,0.0003179,2]
[355726605,1741510034408,-500.0,0.0003179,2]
[355726606,1741510034432,-500.0,0.0003179,2]
[355726607,1741510034455,-500.0,0.0003179,2]
[355726608,1741510034478,-500.0,0.0003179,2]
[355726609,1741510034500,-500.0,0.0003179,2]
[355726610,1741510034522,-500.0,0.0003179,2]
[355726611,1741510034546,-348.94390368,0.0003179,2]
[355726612,1741510034569,-500.0,0.0003179,2]
[355726613,1741510034590,-14404.4558723,0.00031791,2]
[355726614,1741510036082,-813.27610184,0.000309,5]
[355726615,1741510038158,-500.0,0.0002802,2]
[355726616,1741510038184,-40.18889406,0.000309,5]
[355726617,1741510038210,-500.0,0.00031,10]
[355726618,1741510038233,-500.0,0.00031,10]
[355726619,1741510038353,-500.0,0.00031,10]
[355726620,1741510038377,-500.0,0.00031,10]
[355726621,1741510038402,-7967.02092402,0.00031791,2]
[355726622,1741510041075,-500.0,0.0002802,2]
[355726623,1741510041096,-500.0,0.0002802,2]
[355726624,1741510041120,-500.0,0.00031,10]
[355726625,1741510041143,-1692.7021432,0.00031791,2]
[355726630,1741510147081,-500.0,0.0002802,2]
[355726631,1741510147104,-500.0,0.0002802,2]
[355726632,1741510147125,-789.5656307,0.0002802,2]
[355726633,1741510147148,-400.0,0.00030899,2]
[355726634,1741510147168,-7686.07676353,0.000309,2]
[355726635,1741510147190,-500.0,0.00031,10]
[355726636,1741510147210,-675.03916878,0.00031,10]
[355726637,1741510147232,-500.0,0.00031,10]
[355726638,1741510147254,-500.0,0.00031,10]
[355726639,1741510147274,-500.0,0.00031,10]
[355726640,1741510147296,-500.0,0.00031789,2]
[355726641,1741510147322,-500.0,0.00031789,2]
[355726642,1741510147344,-333.72723587,0.00031789,2]
[355726643,1741510147365,-500.0,0.00031789,2]
[355726644,1741510147386,-234.949217,0.00031789,2]
[355726645,1741510147410,-540.0319755,0.00031789,2]
[355726646,1741510147432,-239.07928462,0.00031789,2]
[355726647,1741510147455,-500.0,0.00031789,2]
[355726648,1741510147476,-499.86649046,0.00031789,2]
[355726649,1741510147500,-500.0,0.00031789,2]
[355726650,1741510147525,-500.0,0.00031789,2]
[355726651,1741510147549,-500.0,0.00031789,2]
[355726652,1741510147571,-835.82106048,0.00031791,2]
[355726653,1741510147592,-500.0,0.000318,5]
[355726654,1741510147613,-500.0,0.000318,5]
[355726655,1741510147633,-500.0,0.000318,5]
[355726656,1741510147654,-200.0,0.00032,2]
[355726657,1741510147677,-501.64993421,0.000322,3]
[355726658,1741510147698,-500.0,0.000322,5]
[355726659,1741510147719,-500.0,0.000324,5]
[355726660,1741510147739,-502.11343108,0.000324,5]
[355726661,1741510147762,-500.0,0.000324,5]
[355726662,1741510147782,-500.0,0.000324,5]
[355726663,1741510147802,-500.0,0.000324,5]
[355726664,1741510147822,-513.87258484,0.000324,5]
[355726665,1741510147844,-162.69435949,0.000324,2]
[355726666,1741510147864,-160.04271205,0.000324,5]
[355726667,1741510147886,-500.0,0.000324,2]
[355726668,1741510147907,-205.48826695,0.00033,5]
[355726669,1741510147928,-500.0,0.00033,5]
[355726670,1741510147949,-500.84861186,0.00033,5]
[355726671,1741510147969,-500.0,0.00033,5]
[355726672,1741510147989,-500.0,0.00033,5]
[355726673,1741510148012,-560.0,0.00033271,2]
[355726674,1741510148032,-1822.0,0.00033376,2]
[355726675,1741510148052,-303.17617623,0.00034888,2]
[355726676,1741510148074,-665.0,0.00035826,2]
[355726677,1741510148095,-164.131121,0.0003589,2]
[355726678,1741510148118,-772.24268406,0.000359,2]
[355726679,1741510148139,-299.30385434,0.000362,98]
[355726680,1741510148164,-299.3038543,0.000363,98]
[355726681,1741510148185,-801.75478616,0.00036432,2]
[355726682,1741510148207,-1000.0,0.00037279,5]
[355726683,1741510148229,-560.63557035,0.00037415,2]
[355726684,1741510148250,-500.0,0.00037679,5]
[355726687,1741510154080,-488.99247918,0.00037879,2]
[355726688,1741510154101,-194.585334,0.00038356,2]
[355726689,1741510154122,-198.8804487,0.00038479,5]
[355726690,1741510154145,-500.0,0.00038479,5]
[355726691,1741510154172,-194.585334,0.00039178,2]
[355726692,1741510154195,-174.008,0.00039885,14]
[355726693,1741510154215,-194.585334,0.0004,2]
[355726694,1741510154239,-159.89,0.0004,2]
[355726695,1741510159746,500.0,0.00038356,2]
[355726696,1741510161944,200.0,0.00032,2]
[355726697,1741510168252,200.0,0.00032,2]
[355726698,1741510172089,-299.3038543,0.000405,120]
[355726699,1741510172111,-194.585334,0.00040822,2]
[355726700,1741510172133,-819.838651,0.00041133,2]
[355726701,1741510172156,-194.585334,0.00041644,2]
[355726702,1741510172179,-1417.10693635,0.00041999,2]
[355726703,1741510172201,-852.5464507,0.00042349,2]
[355726704,1741510172223,-194.585334,0.00042466,2]
[355726705,1741510204526,297.99655969,0.000318,5]
[355726706,1741510209581,600.0,0.00031772,2]
[355726707,1741510210203,622.2,0.00031827,2]
[355726708,1741510210872,645.2214,0.00031882,2]
[355726709,1741510211523,669.0945918,0.00031937,2]
[355726710,1741510212193,693.8510917,0.00031992,2]
[355726711,1741510212838,790.36486649,0.00032047,2]
[355726752,1741510231991,-194.585334,0.00043288,2]
[355726754,1741510232001,-500.0,0.0004342,120]
[355726756,1741510232010,-853.908834,0.00043797,2]
[355726758,1741510232020,-427.36803659,0.000439,9]
[355726760,1741510232033,-343.584,0.000439,9]
[355726769,1741510232107,-78.24892358,0.000439,9]
[355726771,1741510232117,-194.585334,0.0004411,2]
[355726773,1741510232127,-299.3038543,0.000447,120]
[355726775,1741510232136,-500.0,0.00044794,120]
[355726777,1741510232145,-194.585334,0.00044932,2]
[355726779,1741510232154,-74.63043111,0.00045068,120]
[355726781,1741510232166,-425.36956889,0.00045068,120]
[355726783,1741510232176,-194.585334,0.00045753,2]
[355726785,1741510232189,-521.57019074,0.0004616,120]
[355726787,1741510232199,-194.585334,0.00046575,2]
[355726789,1741510232207,-500.0,0.00046575,10]
[355726791,1741510232217,-2442.2663695,0.00046609,4]
[355726793,1741510232227,-572.77734505,0.0004698,3]
[355726795,1741510232237,-813.72104228,0.00046993,2]
[355726797,1741510232246,-489.82057118,0.00047297,120]
[355726799,1741510232258,-174.78161767,0.00047297,31]
[355726801,1741510232269,-1421.34345336,0.0004737,2]
[355726803,1741510232278,-2414.5244874,0.00047378,28]
[355726805,1741510232287,-11606.88744945,0.00047378,120]
[355726807,1741510232297,-813.72104228,0.00047385,2]
[355726809,1741510232306,-194.585334,0.00047397,2]
[355726811,1741510232315,-378.9651656,0.0004746,2]
[355726813,1741510232324,-674.46512415,0.0004746,2]
[355726815,1741510232334,-500.0,0.0004746,5]
[355726817,1741510232343,-504.73521315,0.00047473,7]
[355726819,1741510232353,-500.0,0.00047473,10]
[355726821,1741510232363,-999.0,0.00047477,120]
[355726823,1741510232372,-222000.0,0.00047478,2]
[355726825,1741510232382,-554.54156838,0.0004756,2]
[355726827,1741510232391,-674.46512414,0.0004757,2]
[355726829,1741510232400,-503.89541051,0.00047573,10]
[355726831,1741510232409,-500.0,0.00047573,10]
[355726833,1741510232418,-500.0,0.00047573,10]
[355726835,1741510232427,-160.26724425,0.00047573,10]
[355726837,1741510232437,-507.27241676,0.00047573,10]
[355726839,1741510232446,-502.92213875,0.00047573,5]
[355726841,1741510232456,-500.0,0.00047573,10]
[355726843,1741510232465,-15232.79378099,0.00047578,46]
[355726845,1741510232474,-6384.74067909,0.00047578,46]
[355726847,1741510232483,-1039.793185,0.00047578,120]
[355726849,1741510232493,-1039.793185,0.00047578,120]
[355726851,1741510232502,-151.0,0.00047578,120]
[355726853,1741510232511,-97458.3115856,0.00047578,2]
[355726855,1741510232520,-151.0,0.0004758,120]
[355726857,1741510232530,-156.233894,0.0004758,120]
[355726859,1741510232539,-160.0,0.00047626,2]
[355726861,1741510232549,-175.0,0.00047648,120]
[355726863,1741510232558,-151.0,0.0004765,120]
[355726865,1741510232568,-151.0,0.0004765,120]
[355726867,1741510232577,-196.5,0.0004766,30]
[355726869,1741510232586,-1735.0,0.00047661,60]
[355726871,1741510232596,-326.421334,0.00047661,120]
[355726873,1741510232605,-326.421334,0.00047661,120]
[355726875,1741510232614,-151.0,0.00047661,120]
[355726877,1741510232623,-153.550886,0.0004767,120]
[355726879,1741510232632,-151.0,0.0004767,120]
[355726881,1741510232642,-151.0,0.0004767,120]
[355726883,1741510232651,-151.0,0.0004767,120]
[355726885,1741510232660,-1752.084936,0.0004767,120]
[355726887,1741510232669,-1752.084936,0.0004767,120]
[355726889,1741510232679,-504.41091777,0.00047673,10]
[355726891,1741510232688,-505.77461869,0.00047673,10]
[355726893,1741510232697,-674.46512414,0.0004768,2]
[355726895,1741510232706,-674.46512414,0.0004779,2]
[355726897,1741510232715,-151.0,0.000478,29]
[355726899,1741510232725,-151.0,0.000478,21]
[355726901,1741510232734,-151.0,0.000478,28]
[355726903,1741510232743,-3000.0,0.000479,2]
[355726905,1741510232752,-151.0,0.000479,26]
[355726907,1741510232760,-151.0,0.000479,28]
[355726909,1741510232770,-151.0,0.000479,27]
[355726911,1741510232779,-1000.0,0.000479,60]
[355726913,1741510232788,-674.46512414,0.000479,2]
[355726915,1741510232797,-502.52262081,0.00047973,10]
[355726917,1741510232806,-500.0,0.00047973,10]
[355726919,1741510232816,-160.26724425,0.00047973,10]
[355726921,1741510232825,-500.0,0.00047973,10]
[355726923,1741510232834,-500.0,0.00047973,10]
[355726925,1741510232843,-324.82966276,0.00047973,10]
[355726927,1741510232853,-500.0,0.00047973,10]
[355726929,1741510232862,-502.33464067,0.00047973,7]
[355726931,1741510232871,-509.22531814,0.00047973,10]
[355726933,1741510232880,-503.77540919,0.00047973,10]
[355726935,1741510232889,-257.93328655,0.00047973,10]
[355726937,1741510232898,-501.19393178,0.00047973,10]
[355726940,1741510232918,-342.83924101,0.00047973,2]
[355726942,1741510232927,-502.65666767,0.00047973,10]
[355726944,1741510232937,-503.90406976,0.00047973,10]
[355726946,1741510232947,-446.72858061,0.00047973,10]
[355726948,1741510232956,-500.0,0.00047973,10]
[355726950,1741510232965,-500.0,0.00047973,10]
[355726952,1741510232975,-500.0,0.00047973,3]
[355726954,1741510232985,-502.85858926,0.00047973,10]
[355726957,1741510232995,-500.0,0.00047973,10]
[355726959,1741510233004,-500.0,0.00047973,10]
[355726961,1741510233014,-501.54349599,0.00047973,10]
[355726963,1741510233023,-507.94638735,0.00047973,10]
[355726965,1741510233033,-161.79545104,0.00047973,5]
[355726967,1741510233043,-501.87405013,0.00047973,10]
[355726969,1741510233052,-500.0,0.00047973,2]
[355726971,1741510233061,-396.0597479,0.00047973,2]
[355726973,1741510233072,-500.0,0.00047973,10]
[355726975,1741510233082,-500.0,0.00047973,10]
[355726977,1741510233092,-500.0,0.00047973,10]
[355726979,1741510233102,-502.57240759,0.00047973,10]
[355726981,1741510233111,-500.0,0.00047973,2]
[355726983,1741510233120,-500.0,0.00047973,10]
[355726985,1741510233130,-500.21558759,0.00047973,10]
[355726987,1741510233140,-501.18732734,0.00047973,10]
[355726989,1741510233149,-500.0,0.00047973,10]
[355726991,1741510233159,-501.81927134,0.00047973,10]
[355726993,1741510233170,-500.0,0.00047973,10]
[355726995,1741510233185,-501.91416295,0.00047973,10]
[355726997,1741510233195,-500.36311028,0.00047973,10]
[355726999,1741510233205,-501.76696322,0.00047973,10]
[355727001,1741510233214,-500.0,0.00047973,10]
[355727003,1741510233225,-500.0,0.00047973,10]
[355727005,1741510233235,-500.0,0.00047973,10]
[355727007,1741510233244,-400.40033605,0.00047973,10]
[355727009,1741510233254,-500.0,0.00047973,10]
[355727011,1741510233263,-500.0,0.00047973,10]
[355727013,1741510233273,-500.0,0.00047973,10]
[355727015,1741510233283,-199.7817829,0.00047973,3]
[355727017,1741510233293,-500.0,0.00047973,10]
[355727019,1741510233303,-650.0,0.00047973,10]
[355727021,1741510233313,-326.421334,0.0004798,120]
[355727023,1741510233323,-326.421334,0.0004798,120]
[355727025,1741510233333,-154.02273,0.0004798,120]
[355727027,1741510233342,-1000.0,0.0004799,5]
[355727029,1741510233352,-151.0,0.0004799,120]
[355727031,1741510233362,-1039.793185,0.0004799,120]
[355727033,1741510233372,-1039.793185,0.0004799,120]
[355727035,1741510233382,-151.0,0.0004799,120]
[355727037,1741510233391,-6260.54849841,0.00048,120]
[355727039,1741510233402,-689957.06439382,0.00048,120]
[355727523,1741510238120,-369.69437892,0.0004756,2]
[355727524,1741510238130,-621.133276,0.0004757,120]
[355727525,1741510238140,-621.133276,0.0004757,120]
[355727526,1741510238149,-621.133276,0.0004763,120]
[355727527,1741510238158,-501.72173097,0.00047973,10]
[355727528,1741510238166,-500.98437838,0.00047973,10]
[355727529,1741510238176,-500.0,0.00047973,10]
[355727530,1741510238190,-175.34,0.0004799,10]
[355727531,1741510238199,-4981.67888571,0.00048,120]
[355727532,1741510238211,-284883.05433757,0.00048,120]
[355727533,1741510238221,-2902.6985865,0.00048,120]
[355727534,1741510238231,-151.0,0.00048,30]
[355727535,1741510238240,-438.021402,0.00048,30]
[355727536,1741510238249,-438.021402,0.00048,30]
[355727537,1741510238260,-151.0,0.00048,120]
[355727538,1741510238271,-249.854843,0.00048,120]
[355727539,1741510238280,-151.0,0.00048,120]
[355727541,1741510238289,-241.001027,0.00048,120]
[355727543,1741510238299,-241.001027,0.00048,120]
[355727545,1741510238308,-151.0,0.00048,120]
[355727547,1741510238317,-151.0,0.00048,120]
[355727549,1741510238327,-1752.084936,0.00048,120]
[355727551,1741510238336,-1752.084936,0.00048,120]
[355727553,1741510238346,-154.148902,0.00048,120]
[355727555,1741510238355,-326.421334,0.00048,120]
[355727557,1741510238365,-326.421334,0.00048,120]
[355727559,1741510238375,-151.0,0.00048,120]
[355727561,1741510238385,-428.133257,0.00048,120]
[355727563,1741510238394,-428.133257,0.00048,120]
[355727565,1741510238403,-1039.793185,0.00048,120]
[355727567,1741510238413,-1039.793185,0.00048,120]
[355727569,1741510238422,-151.653595,0.00048,120]